Workbook

Sheet Read_Me
A1: In order for this spreadsheet to work, you must…
A3: 1) Enable Macros
A18: 2) Open the VB Editor
A28: 3) Write the macro

Sheet P&L Tool
D1: Last: | E1: 13:35:31
A3: Type | B3: Symbol | C3: Positions | D3: Purch Date | E3: Purch Price ($) | F3: Last Price ($) | G3: Change ($) | H3: ITD ($) | I3: YTD ($) | J3: P&L ($)
A4: EQUITY | B4: AA | C4: ='Asset Class P&L'!G5 -> 5000 | D4: 2011-10-03 | E4: 9.12 | F4: ='Asset Class P&L'!D5 -> 8.92 | G4: ='Asset Class P&L'!E5 -> -0.17 | H4: ='Asset Class P&L'!I5 -> -17900 | I4: =(E4-15.8)*C4 -> -33400 | J4: ='Asset Class P&L'!J4 -> -2790
A5: EQUITY | B5: T | C5: ='Asset Class P&L'!G6 -> 2500 | D5: 2011-08-05 | E5: 28.49 | F5: ='Asset Class P&L'!D6 -> 28.81 | G5: ='Asset Class P&L'!E6 -> 0.16 | H5: ='Asset Class P&L'!I6 -> 2175 | I5: =(F5-28.01)*C5 -> 2000 | J5: ='Asset Class P&L'!J5 -> -850
A6: EQUITY | B6: ORCL | C6: ='Asset Class P&L'!G4 -> 3000 | D6: 2011-11-07 | E6: ='Asset Class P&L'!H4 -> 31.9 | F6: ='Asset Class P&L'!D4 -> 29.87 | G6: ='Asset Class P&L'!E4 -> -0.93 | H6: ='Asset Class P&L'!I4 -> -6090 | I6: =(E6-31.39)*C6 -> 1530 | J6: ='Asset Class P&L'!J4 -> -2790
A7: OPTION | B7: ORCL | C7: ='Asset Class P&L'!G11 -> 300 | D7: 2011-11-15 | E7: ='Asset Class P&L'!F11 -> 10.15 | F7: ='Asset Class P&L'!H11 -> 9.98 | G7: ='Asset Class P&L'!I11 -> -0.77 | H7: ='Asset Class P&L'!J11 -> -84 | I7: =IF(E6>20,((27-20)*300),(-9.911*300)) -> 2100 | J7: ='Asset Class P&L'!J11 -> -84
A8: BOND | B8: ORCL | C8: ='Asset Class P&L'!C17 -> 500 | D8: 2011-03-01 | E8: ='Asset Class P&L'!B17 -> 108 | F8: ='Asset Class P&L'!D17 -> 115.188 | G8: -0.2 | H8: ='Asset Class P&L'!J17 -> 3594 | I8: ='Asset Class P&L'!I17 -> 57594 | J8: ='Asset Class P&L'!K17 -> -8
A9: FUTURE | B9: CL | C9: ='Asset Class P&L'!F22 -> 1000 | D9: 2011-09-05 | E9: ='Asset Class P&L'!G22 -> 89.38 | F9: ='Asset Class P&L'!H22 -> 95.43 | G9: ='Asset Class P&L'!I22 -> 0.06 | H9: ='Asset Class P&L'!K22 -> 6050 | I9: =(F9-91.55)*C9 -> 3880 | J9: ='Asset Class P&L'!L22 -> 60
G10: Total: | H10: =SUM(H6:H9) -> 3470 | I10: =SUM(I6:I9) -> 65104 | J10: =SUM(J6:J9) -> -2822
A13: Note : The web service connections have been removed, new ones can be set when you sign up for a free trial at: | I13: =HYPERLINK("https://www.xignite.com/MyAccount/Register.aspx","Xignite Free Trial") -> Xignite Free Trial

Sheet Asset Class P&L
A1: Equity:
A3: ns1:Symbol | B3: ns1:Name | C3: ns1:Date | D3: ns1:LastPrice | E3: ns1:ChangeFromMarketOpen | F3: ns1:ChangeFromLastMarketClose | G3: Positions | H3: Purchase Price | I3: ITD | J3: P&L
A4: ORCL | B4: Oracle Corporation | C4: 12/14/2011 | D4: 29.87 | E4: -0.93 | F4: -0.96 | G4: 3000 | H4: 31.9 | I4: =(D4-H4)*G4 -> -6090 | J4: =G4*E4 -> -2790
A5: AA | B5: Alcoa Inc. | C5: 12/14/2011 | D5: 8.92 | E5: -0.17 | F5: -0.12 | G5: 5000 | H5: 12.5 | I5: =(D5-H5)*G5 -> -17900 | J5: -850
A6: T | B6: AT&T Inc. | C6: 12/14/2011 | D6: 28.81 | E6: 0.16 | F6: -0.23 | G6: 2500 | H6: 27.94 | I6: 2175 | J6: 400
A8: Options:
A10: ns1:BaseSymbol | B10: ns1:Type | C10: ns1:Month | D10: ns1:Year | E10: ns1:StrikePrice | F10: Purchase Price | G10: Positions | H10: ns1:Last | I10: ns1:Change | J10: P&L
A11: ORCL | B11: Call | C11: 1 | D11: 2012 | E11: 20 | F11: 10.15 | G11: 300 | H11: 9.98 | I11: -0.77 | J11: =IF(D4>20,((D4-20-F11)*300),(-15.55*300)) -> -84
A14: Fixed Income (Bonds)
A16: ns1:ShortName | B16: Purchase Price | C16: Position | D16: ns1:TradePrice | E16: ns1:YieldToMaturity | F16: ns1:PriceForYieldCalculation | G16: ns1:DailyOpen | H16: Last Year Close | I16: YTD | J16: ITD | K16: P&L
A17: 5.25 Oracle 16 Nts | B17: 108 | C17: 500 | D17: 115.188 | E17: 1.3595 | F17: 114.977 | G17: 115.204 | H17: 0 | I17: =(D17-H17)*C17 -> 57594 | J17: =(D17-B17)*C17 -> 3594 | K17: =(D17-G17)*C17 -> -8
A19: Futures
A21: ns1:Symbol | B21: ns1:Name | C21: ns1:Month | D21: ns1:Year | E21: ns1:Type | F21: Position | G21: Purchase Price | H21: ns1:Last | I21: ns1:Change | J21: Previous Close | K21: ITD | L21: P&L
A22: CL | B22: Crude Oil | C22: 3 | D22: 2012 | E22: Future | F22: 1000 | G22: 89.38 | H22: 95.43 | I22: 0.06 | J22: 95.37 | K22: =(H22-G22)*F22 -> 6050 | L22: =(H22-J22)*F22 -> 60
